[Event "Titled Tuesday Blitz March 14 Early 2023"]
[White "Melikyan, Gnel"]
[Black "Yu, Yangyi"]
[WhiteFideId "54109990"]
[BlackFideId "8603820"]
[WhiteElo "2138"]
[BlackElo "2783"]
[Result "0-1"]
[Round "01"]
[TimeControl "180+2"]
[Date "2023.03.14"]
[WhiteClock "0:00:03"]
[BlackClock "0:01:31"]

1. e4 {[%clk 0:02:56]}  c5 {[%clk 0:02:59]} 2. Nf3 {[%clk 0:02:56]}  d6 {[%clk 0:02:59]} 3. d4 {[%clk 0:02:56]}  cxd4 {[%clk 0:03:00]} 4. Nxd4 {[%clk 0:02:56]}  Nf6 {[%clk 0:03:01]} 5. Nc3 {[%clk 0:02:56]}  Nc6 {[%clk 0:03:01]} 6. Bc4 {[%clk 0:02:55]}  e6 {[%clk 0:02:59]} 7. Be3 {[%clk 0:02:49]}  Bd7 {[%clk 0:02:56]} 8. O-O {[%clk 0:02:48]}  Be7 {[%clk 0:02:55]} 9. Bb3 {[%clk 0:02:32]}  O-O {[%clk 0:02:54]} 10. Ndb5 {[%clk 0:02:17]}  Qb8 {[%clk 0:02:51]} 11. Bf4 {[%clk 0:01:32]}  Ne5 {[%clk 0:02:47]} 12. Bg3 {[%clk 0:01:29]}  Bxb5 {[%clk 0:02:43]} 13. Nxb5 {[%clk 0:01:28]}  Nxe4 {[%clk 0:02:42]} 14. Bf4 {[%clk 0:01:17]}  Nc5 {[%clk 0:02:34]} 15. Re1 {[%clk 0:01:11]}  a6 {[%clk 0:02:32]} 16. Nd4 {[%clk 0:01:08]}  Qc7 {[%clk 0:02:29]} 17. Qh5 {[%clk 0:01:00]}  Nxb3 {[%clk 0:02:27]} 18. axb3 {[%clk 0:00:52]}  Ng6 {[%clk 0:02:26]} 19. Bg3 {[%clk 0:00:49]}  Qc5 {[%clk 0:02:23]} 20. Qxc5 {[%clk 0:00:40]}  dxc5 {[%clk 0:02:24]} 21. Ne2 {[%clk 0:00:36]}  f5 {[%clk 0:02:21]} 22. f3 {[%clk 0:00:27]}  Rfd8 {[%clk 0:02:19]} 23. Nc3 {[%clk 0:00:21]}  Kf7 {[%clk 0:02:19]} 24. Re2 {[%clk 0:00:21]}  Bf6 {[%clk 0:02:16]} 25. Rae1 {[%clk 0:00:16]}  Bd4+ {[%clk 0:02:16]} 26. Kf1 {[%clk 0:00:14]}  e5 {[%clk 0:02:13]} 27. Na4 {[%clk 0:00:13]}  b5 {[%clk 0:02:12]} 28. Nc3 {[%clk 0:00:08]}  Rac8 {[%clk 0:02:10]} 29. Bf2 {[%clk 0:00:09]}  Nf4 {[%clk 0:02:06]} 30. Rd2 {[%clk 0:00:06]}  g5 {[%clk 0:01:54]} 31. g3 {[%clk 0:00:04]}  Ne6 {[%clk 0:01:54]} 32. Nd1 {[%clk 0:00:04]}  Kf6 {[%clk 0:01:49]} 33. c3 {[%clk 0:00:04]}  Bxf2 {[%clk 0:01:49]} 34. Rxf2 {[%clk 0:00:05]}  c4 {[%clk 0:01:48]} 35. Rfe2 {[%clk 0:00:05]}  Rc5 {[%clk 0:01:44]} 36. b4 {[%clk 0:00:06]}  Rcd5 {[%clk 0:01:43]} 37. Ne3 {[%clk 0:00:04]}  Rd2 {[%clk 0:01:43]} 38. g4 {[%clk 0:00:04]}  Rxe2 {[%clk 0:01:41]} 39. Rxe2 {[%clk 0:00:03]}  f4 {[%clk 0:01:41]} 40. Nf5 {[%clk 0:00:03]}  Rd5 {[%clk 0:01:37]} 41. h4 {[%clk 0:00:02]}  h5 {[%clk 0:01:35]} 42. Kg2 {[%clk 0:00:02]}  Rd3 {[%clk 0:01:31]} 43. hxg5+ {[%clk 0:00:03]}  Nxg5 {[%clk 0:01:31]} 44. Nh4 {[%clk 0:00:03]}  hxg4 {[%clk 0:01:31]} 0-1


[Site "https://www.chess.com"]

[Event "Titled Tuesday Blitz March 14 Early 2023"]
[White "Caruana, Fabiano"]
[Black "Nurmanova, Alua"]
[WhiteFideId "2020009"]
[BlackFideId "13729390"]
[WhiteElo "2818"]
[BlackElo "2253"]
[Result "1-0"]
[Round "01"]
[TimeControl "180+2"]
[Date "2023.03.14"]
[WhiteClock "0:01:31"]
[BlackClock "0:00:11"]

1. d4 {[%clk 0:03:00]}  Nf6 {[%clk 0:02:59]} 2. Nf3 {[%clk 0:02:59]}  g6 {[%clk 0:02:58]} 3. g3 {[%clk 0:02:59]}  Bg7 {[%clk 0:02:58]} 4. Bg2 {[%clk 0:03:00]}  O-O {[%clk 0:02:57]} 5. O-O {[%clk 0:03:01]}  d6 {[%clk 0:02:56]} 6. a4 {[%clk 0:03:02]}  Nc6 {[%clk 0:02:53]} 7. a5 {[%clk 0:03:00]}  a6 {[%clk 0:02:50]} 8. c3 {[%clk 0:02:42]}  d5 {[%clk 0:02:42]} 9. Bf4 {[%clk 0:02:41]}  Ne4 {[%clk 0:02:34]} 10. Nbd2 {[%clk 0:02:39]}  Re8 {[%clk 0:02:02]} 11. Nxe4 {[%clk 0:02:37]}  dxe4 {[%clk 0:02:03]} 12. Ng5 {[%clk 0:02:37]}  f5 {[%clk 0:01:55]} 13. d5 {[%clk 0:02:21]}  Ne5 {[%clk 0:01:54]} 14. Qb3 {[%clk 0:02:21]}  h6 {[%clk 0:01:46]} 15. Ne6 {[%clk 0:02:03]}  Bxe6 {[%clk 0:01:45]} 16. dxe6 {[%clk 0:02:04]}  Qc8 {[%clk 0:01:45]} 17. Rfd1 {[%clk 0:01:59]}  Kh7 {[%clk 0:01:36]} 18. Bxe5 {[%clk 0:01:55]}  Bxe5 {[%clk 0:01:36]} 19. Rd7 {[%clk 0:01:55]}  Bd6 {[%clk 0:01:27]} 20. Rd1 {[%clk 0:01:52]}  Rb8 {[%clk 0:01:24]} 21. g4 {[%clk 0:01:46]}  fxg4 {[%clk 0:01:06]} 22. Bxe4 {[%clk 0:01:44]}  Rd8 {[%clk 0:01:05]} 23. R1xd6 {[%clk 0:01:42]}  cxd6 {[%clk 0:01:01]} 24. Rxe7+ {[%clk 0:01:42]}  Kh8 {[%clk 0:00:58]} 25. Bxg6 {[%clk 0:01:39]}  d5 {[%clk 0:00:13]} 26. Qb4 {[%clk 0:01:30]}  Qc4 {[%clk 0:00:11]} 27. Rh7+ {[%clk 0:01:31]}  Kg8 {[%clk 0:00:11]} 28. Qe7 {[%clk 0:01:31]} 1-0


[Site "https://www.chess.com"]

[Event "Titled Tuesday Blitz March 14 Early 2023"]
[White "Gontcharov, Vladislav"]
[Black "Erigaisi Arjun"]
[WhiteFideId "4123492"]
[BlackFideId "35009192"]
[WhiteElo "2470"]
[BlackElo "2737"]
[Result "0-1"]
[Round "01"]
[TimeControl "180+2"]
[Date "2023.03.14"]
[WhiteClock "0:00:05"]
[BlackClock "0:00:35"]

1. e4 {[%clk 0:02:57]}  d6 {[%clk 0:02:59]} 2. d4 {[%clk 0:02:56]}  g6 {[%clk 0:02:58]} 3. Nc3 {[%clk 0:02:55]}  a6 {[%clk 0:02:57]} 4. Bd3 {[%clk 0:02:46]}  Bg7 {[%clk 0:02:56]} 5. Nf3 {[%clk 0:02:39]}  Nc6 {[%clk 0:02:54]} 6. Ne2 {[%clk 0:02:39]}  Bg4 {[%clk 0:02:45]} 7. c3 {[%clk 0:02:37]}  e5 {[%clk 0:02:41]} 8. d5 {[%clk 0:02:35]}  Nce7 {[%clk 0:02:39]} 9. h3 {[%clk 0:02:28]}  Bxf3 {[%clk 0:02:38]} 10. gxf3 {[%clk 0:02:28]}  Nf6 {[%clk 0:02:39]} 11. h4 {[%clk 0:02:25]}  Nh5 {[%clk 0:02:39]} 12. Be3 {[%clk 0:02:19]}  f5 {[%clk 0:02:32]} 13. Bg5 {[%clk 0:02:18]}  f4 {[%clk 0:02:28]} 14. Qa4+ {[%clk 0:02:03]}  Kf7 {[%clk 0:02:27]} 15. O-O-O {[%clk 0:02:00]}  h6 {[%clk 0:02:20]} 16. Bxe7 {[%clk 0:01:59]}  Qxe7 {[%clk 0:02:21]} 17. Rdg1 {[%clk 0:01:58]}  Rhg8 {[%clk 0:02:09]} 18. Kb1 {[%clk 0:01:55]}  Bf6 {[%clk 0:02:08]} 19. Rg4 {[%clk 0:01:51]}  Rg7 {[%clk 0:02:08]} 20. Qb3 {[%clk 0:01:46]}  b6 {[%clk 0:02:00]} 21. Nc1 {[%clk 0:01:45]}  Kg8 {[%clk 0:01:53]} 22. Qa4 {[%clk 0:01:36]}  a5 {[%clk 0:01:48]} 23. Bb5 {[%clk 0:01:16]}  Rf8 {[%clk 0:01:45]} 24. b4 {[%clk 0:01:13]}  axb4 {[%clk 0:01:41]} 25. cxb4 {[%clk 0:01:12]}  Ng3 {[%clk 0:01:40]} 26. fxg3 {[%clk 0:01:09]}  h5 {[%clk 0:01:41]} 27. Rg5 {[%clk 0:01:09]}  Bxg5 {[%clk 0:01:41]} 28. hxg5 {[%clk 0:01:09]}  fxg3 {[%clk 0:01:42]} 29. Bf1 {[%clk 0:01:02]}  Rxf3 {[%clk 0:01:32]} 30. Qd1 {[%clk 0:00:56]}  Rgf7 {[%clk 0:01:26]} 31. Be2 {[%clk 0:00:53]}  R3f4 {[%clk 0:01:03]} 32. Nd3 {[%clk 0:00:46]}  Rxe4 {[%clk 0:01:00]} 33. Qd2 {[%clk 0:00:28]}  h4 {[%clk 0:00:47]} 34. Kc2 {[%clk 0:00:16]}  g2 {[%clk 0:00:45]} 35. Rg1 {[%clk 0:00:16]}  h3 {[%clk 0:00:46]} 36. Qd1 {[%clk 0:00:11]}  Qxg5 {[%clk 0:00:44]} 37. Bf3 {[%clk 0:00:09]}  Rc4+ {[%clk 0:00:43]} 38. Kb3 {[%clk 0:00:10]}  Rd4 {[%clk 0:00:44]} 39. Qe2 {[%clk 0:00:09]}  Qg3 {[%clk 0:00:34]} 40. Be4 {[%clk 0:00:08]}  Rf4 {[%clk 0:00:35]} 41. Bxg2 {[%clk 0:00:06]}  Qxd3+ {[%clk 0:00:34]} 42. Qxd3 {[%clk 0:00:05]}  Rxd3+ {[%clk 0:00:35]} 0-1


[Site "https://www.chess.com"]

[Event "Titled Tuesday Blitz March 14 Early 2023"]
[White "Plotnikov, Pavel"]
[Black "Pranav, V"]
[WhiteFideId "4170342"]
[BlackFideId "25060783"]
[WhiteElo "2298"]
[BlackElo "2500"]
[Result "0-1"]
[Round "01"]
[TimeControl "180+2"]
[Date "2023.03.14"]
[WhiteClock "0:00:12"]
[BlackClock "0:01:53"]

1. e4 {[%clk 0:02:56]}  e5 {[%clk 0:03:00]} 2. Nf3 {[%clk 0:02:56]}  Nc6 {[%clk 0:03:00]} 3. Nc3 {[%clk 0:02:56]}  Nf6 {[%clk 0:02:59]} 4. Be2 {[%clk 0:02:56]}  g6 {[%clk 0:02:58]} 5. d4 {[%clk 0:02:52]}  exd4 {[%clk 0:02:59]} 6. Nxd4 {[%clk 0:02:52]}  d6 {[%clk 0:02:57]} 7. Bg5 {[%clk 0:02:49]}  Be7 {[%clk 0:02:50]} 8. O-O {[%clk 0:02:44]}  O-O {[%clk 0:02:49]} 9. Bf3 {[%clk 0:02:38]}  Ne5 {[%clk 0:02:48]} 10. Re1 {[%clk 0:02:32]}  Re8 {[%clk 0:02:47]} 11. h3 {[%clk 0:02:28]}  c6 {[%clk 0:02:44]} 12. a4 {[%clk 0:02:26]}  Bf8 {[%clk 0:02:40]} 13. a5 {[%clk 0:02:24]}  a6 {[%clk 0:02:35]} 14. Na4 {[%clk 0:02:16]}  h6 {[%clk 0:02:34]} 15. Bd2 {[%clk 0:02:13]}  Bg7 {[%clk 0:02:31]} 16. Nb6 {[%clk 0:02:12]}  Rb8 {[%clk 0:02:31]} 17. Ra3 {[%clk 0:01:45]}  Nfd7 {[%clk 0:02:28]} 18. Nxc8 {[%clk 0:01:34]}  Rxc8 {[%clk 0:02:29]} 19. Bc1 {[%clk 0:01:24]}  Nc5 {[%clk 0:02:15]} 20. b4 {[%clk 0:00:48]}  Ncd7 {[%clk 0:02:12]} 21. Be2 {[%clk 0:00:46]}  c5 {[%clk 0:02:07]} 22. bxc5 {[%clk 0:00:39]}  Nxc5 {[%clk 0:02:08]} 23. Bf1 {[%clk 0:00:31]}  Ned7 {[%clk 0:02:06]} 24. f3 {[%clk 0:00:22]}  Nf8 {[%clk 0:02:00]} 25. c4 {[%clk 0:00:20]}  Qh4 {[%clk 0:01:56]} 26. Be3 {[%clk 0:00:19]}  Nfe6 {[%clk 0:01:52]} 27. Nxe6 {[%clk 0:00:18]}  Nxe6 {[%clk 0:01:53]} 28. Bf2 {[%clk 0:00:17]}  Qg5 {[%clk 0:01:52]} 29. Qxd6 {[%clk 0:00:16]}  Bf8 {[%clk 0:01:52]} 30. Qd3 {[%clk 0:00:14]}  Nf4 {[%clk 0:01:51]} 31. Qb3 {[%clk 0:00:12]}  Bxa3 {[%clk 0:01:52]} 32. Qxa3 {[%clk 0:00:12]}  Nxh3+ {[%clk 0:01:52]} 33. Kh2 {[%clk 0:00:12]}  Nxf2 {[%clk 0:01:53]} 0-1


[Site "https://www.chess.com"]

[Event "Titled Tuesday Blitz March 14 Early 2023"]
[White "Le, Tuan Minh"]
[Black "Lopez Mulet, Inigo"]
[WhiteFideId "12401153"]
[BlackFideId "22235620"]
[WhiteElo "2558"]
[BlackElo "2289"]
[Result "1-0"]
[Round "01"]
[TimeControl "180+2"]
[Date "2023.03.14"]
[WhiteClock "0:00:12"]
[BlackClock "0:00:15"]

1. d4 {[%clk 0:02:54]}  e6 {[%clk 0:02:56]} 2. Nf3 {[%clk 0:02:54]}  Nf6 {[%clk 0:02:56]} 3. Bf4 {[%clk 0:02:54]}  d5 {[%clk 0:02:56]} 4. e3 {[%clk 0:02:54]}  Bd6 {[%clk 0:02:53]} 5. Bg3 {[%clk 0:02:53]}  c5 {[%clk 0:02:53]} 6. c4 {[%clk 0:02:53]}  O-O {[%clk 0:02:42]} 7. Nc3 {[%clk 0:02:51]}  a6 {[%clk 0:02:41]} 8. cxd5 {[%clk 0:02:45]}  exd5 {[%clk 0:02:37]} 9. dxc5 {[%clk 0:02:44]}  Bxc5 {[%clk 0:02:37]} 10. Rc1 {[%clk 0:02:38]}  Be7 {[%clk 0:02:20]} 11. Be2 {[%clk 0:02:31]}  Nc6 {[%clk 0:02:21]} 12. O-O {[%clk 0:02:18]}  Bg4 {[%clk 0:02:17]} 13. h3 {[%clk 0:02:01]}  Bh5 {[%clk 0:02:17]} 14. Nd4 {[%clk 0:01:57]}  Bxe2 {[%clk 0:02:10]} 15. Ndxe2 {[%clk 0:01:42]}  Rc8 {[%clk 0:02:06]} 16. Qd3 {[%clk 0:01:36]}  Qd7 {[%clk 0:01:40]} 17. Rfd1 {[%clk 0:01:34]}  Rfd8 {[%clk 0:01:40]} 18. Na4 {[%clk 0:01:22]}  Nb4 {[%clk 0:01:34]} 19. Qb3 {[%clk 0:01:20]}  Rxc1 {[%clk 0:01:29]} 20. Rxc1 {[%clk 0:01:21]}  Ne4 {[%clk 0:01:26]} 21. Rc7 {[%clk 0:00:51]}  Qe6 {[%clk 0:01:05]} 22. Rxb7 {[%clk 0:00:45]}  Nd2 {[%clk 0:00:56]} 23. Qd1 {[%clk 0:00:44]}  Ne4 {[%clk 0:00:47]} 24. Nac3 {[%clk 0:00:34]}  h5 {[%clk 0:00:39]} 25. Nd4 {[%clk 0:00:26]}  Qf6 {[%clk 0:00:39]} 26. Nxe4 {[%clk 0:00:26]}  dxe4 {[%clk 0:00:38]} 27. Qxh5 {[%clk 0:00:26]}  Nd3 {[%clk 0:00:35]} 28. Nf5 {[%clk 0:00:19]}  g6 {[%clk 0:00:18]} 29. Nxe7+ {[%clk 0:00:16]}  Qxe7 {[%clk 0:00:18]} 30. Rxe7 {[%clk 0:00:16]}  gxh5 {[%clk 0:00:18]} 31. Rxe4 {[%clk 0:00:16]}  Nxb2 {[%clk 0:00:19]} 32. Rd4 {[%clk 0:00:10]}  Rc8 {[%clk 0:00:18]} 33. Bf4 {[%clk 0:00:08]}  Rc1+ {[%clk 0:00:17]} 34. Kh2 {[%clk 0:00:09]}  Rc2 {[%clk 0:00:17]} 35. Kg3 {[%clk 0:00:09]}  Nc4 {[%clk 0:00:17]} 36. a4 {[%clk 0:00:08]}  Nb6 {[%clk 0:00:16]} 37. Rd6 {[%clk 0:00:08]}  Nc4 {[%clk 0:00:16]} 38. Rxa6 {[%clk 0:00:08]}  Nd2 {[%clk 0:00:16]} 39. Kh4 {[%clk 0:00:08]}  Ne4 {[%clk 0:00:17]} 40. f3 {[%clk 0:00:08]}  Nc5 {[%clk 0:00:16]} 41. Rc6 {[%clk 0:00:08]}  Rc4 {[%clk 0:00:15]} 42. a5 {[%clk 0:00:08]}  Kg7 {[%clk 0:00:15]} 43. a6 {[%clk 0:00:08]}  Ra4 {[%clk 0:00:14]} 44. Rxc5 {[%clk 0:00:08]}  Rxa6 {[%clk 0:00:15]} 45. Rxh5 {[%clk 0:00:09]}  f6 {[%clk 0:00:14]} 46. g4 {[%clk 0:00:09]}  Ra2 {[%clk 0:00:14]} 47. Rc5 {[%clk 0:00:08]}  Rf2 {[%clk 0:00:14]} 48. Kg3 {[%clk 0:00:09]}  Rf1 {[%clk 0:00:15]} 49. Kg2 {[%clk 0:00:09]}  Rd1 {[%clk 0:00:15]} 50. h4 {[%clk 0:00:10]}  Rd2+ {[%clk 0:00:15]} 51. Kg3 {[%clk 0:00:10]}  Rd7 {[%clk 0:00:16]} 52. h5 {[%clk 0:00:11]}  Rd1 {[%clk 0:00:15]} 53. Rc7+ {[%clk 0:00:11]}  Kg8 {[%clk 0:00:15]} 54. h6 {[%clk 0:00:12]} 1-0


[Site "https://www.chess.com"]

[Event "Titled Tuesday Blitz March 14 Early 2023"]
[White "Safin, Robert"]
[Black "Bluebaum, Matthias"]
[WhiteFideId "34189120"]
[BlackFideId "24651516"]
[WhiteElo "2245"]
[BlackElo "2638"]
[Result "0-1"]
[Round "01"]
[TimeControl "180+2"]
[Date "2023.03.14"]
[WhiteClock "0:00:08"]
[BlackClock "0:01:52"]

1. e4 {[%clk 0:02:51]}  e6 {[%clk 0:03:00]} 2. d4 {[%clk 0:02:50]}  d5 {[%clk 0:03:00]} 3. Nd2 {[%clk 0:02:51]}  c5 {[%clk 0:03:00]} 4. exd5 {[%clk 0:02:50]}  Qxd5 {[%clk 0:03:01]} 5. Ngf3 {[%clk 0:02:49]}  cxd4 {[%clk 0:03:01]} 6. Bc4 {[%clk 0:02:48]}  Qd6 {[%clk 0:03:02]} 7. O-O {[%clk 0:02:47]}  Nf6 {[%clk 0:03:03]} 8. Nb3 {[%clk 0:02:47]}  Nc6 {[%clk 0:03:03]} 9. Nbxd4 {[%clk 0:02:47]}  Nxd4 {[%clk 0:03:04]} 10. Nxd4 {[%clk 0:02:45]}  Be7 {[%clk 0:03:04]} 11. Re1 {[%clk 0:02:40]}  O-O {[%clk 0:03:03]} 12. c3 {[%clk 0:02:39]}  Qc7 {[%clk 0:02:55]} 13. Bb3 {[%clk 0:02:39]}  b6 {[%clk 0:02:55]} 14. Qe2 {[%clk 0:02:31]}  Kh8 {[%clk 0:02:54]} 15. Bg5 {[%clk 0:02:26]}  Bb7 {[%clk 0:02:51]} 16. Rad1 {[%clk 0:02:00]}  a6 {[%clk 0:02:37]} 17. h3 {[%clk 0:02:00]}  h6 {[%clk 0:02:26]} 18. Bh4 {[%clk 0:01:58]}  Ne4 {[%clk 0:02:22]} 19. Bxe7 {[%clk 0:01:54]}  Qxe7 {[%clk 0:02:23]} 20. Bc2 {[%clk 0:01:52]}  Nf6 {[%clk 0:02:23]} 21. Qe5 {[%clk 0:01:31]}  Qc5 {[%clk 0:01:57]} 22. Qxc5 {[%clk 0:01:14]}  bxc5 {[%clk 0:01:58]} 23. Nb3 {[%clk 0:01:15]}  Rfc8 {[%clk 0:01:58]} 24. Na5 {[%clk 0:01:14]}  Bd5 {[%clk 0:01:54]} 25. c4 {[%clk 0:01:08]}  Bc6 {[%clk 0:01:55]} 26. Nxc6 {[%clk 0:01:04]}  Rxc6 {[%clk 0:01:56]} 27. Be4 {[%clk 0:01:04]}  Nxe4 {[%clk 0:01:55]} 28. Rxe4 {[%clk 0:01:05]}  Rc7 {[%clk 0:01:52]} 29. Re3 {[%clk 0:01:03]}  Rb7 {[%clk 0:01:50]} 30. b3 {[%clk 0:00:30]}  a5 {[%clk 0:01:50]} 31. Red3 {[%clk 0:00:23]}  Raa7 {[%clk 0:01:50]} 32. Rd8+ {[%clk 0:00:21]}  Kh7 {[%clk 0:01:51]} 33. Rc8 {[%clk 0:00:21]}  a4 {[%clk 0:01:51]} 34. Rxc5 {[%clk 0:00:18]}  axb3 {[%clk 0:01:52]} 35. axb3 {[%clk 0:00:19]}  Rxb3 {[%clk 0:01:53]} 36. Rd4 {[%clk 0:00:15]}  Rb2 {[%clk 0:01:52]} 37. Rf4 {[%clk 0:00:14]}  f5 {[%clk 0:01:52]} 38. Re5 {[%clk 0:00:13]}  Ra6 {[%clk 0:01:50]} 39. h4 {[%clk 0:00:10]}  g5 {[%clk 0:01:50]} 40. hxg5 {[%clk 0:00:10]}  hxg5 {[%clk 0:01:51]} 41. Rf3 {[%clk 0:00:11]}  Kg6 {[%clk 0:01:52]} 42. g3 {[%clk 0:00:09]}  Kf6 {[%clk 0:01:52]} 43. Ree3 {[%clk 0:00:08]}  g4 {[%clk 0:01:51]} 44. Rf4 {[%clk 0:00:08]}  e5 {[%clk 0:01:52]} 0-1


[Site "https://www.chess.com"]

[Event "Titled Tuesday Blitz March 14 Early 2023"]
[White "Lazavik, Denis"]
[Black "Riff, Vincent"]
[WhiteFideId "13515110"]
[BlackFideId "617776"]
[WhiteElo "2560"]
[BlackElo "2369"]
[Result "1-0"]
[Round "01"]
[TimeControl "180+2"]
[Date "2023.03.14"]
[WhiteClock "0:00:28"]
[BlackClock "0:01:26"]

1. d4 {[%clk 0:03:00]}  Nf6 {[%clk 0:02:55]} 2. c4 {[%clk 0:03:01]}  c5 {[%clk 0:02:50]} 3. d5 {[%clk 0:03:01]}  e5 {[%clk 0:02:50]} 4. Nc3 {[%clk 0:03:00]}  d6 {[%clk 0:02:50]} 5. e4 {[%clk 0:03:00]}  Be7 {[%clk 0:02:51]} 6. Bd3 {[%clk 0:02:57]}  Nbd7 {[%clk 0:02:51]} 7. h3 {[%clk 0:02:56]}  h5 {[%clk 0:02:50]} 8. Nf3 {[%clk 0:02:55]}  Nf8 {[%clk 0:02:48]} 9. g3 {[%clk 0:02:32]}  Ng6 {[%clk 0:02:45]} 10. h4 {[%clk 0:02:33]}  Bg4 {[%clk 0:02:38]} 11. Be2 {[%clk 0:02:32]}  a6 {[%clk 0:02:37]} 12. a4 {[%clk 0:02:29]}  a5 {[%clk 0:02:31]} 13. Be3 {[%clk 0:02:25]}  O-O {[%clk 0:02:28]} 14. Ng5 {[%clk 0:02:23]}  Bxe2 {[%clk 0:02:26]} 15. Qxe2 {[%clk 0:02:24]}  Ng4 {[%clk 0:02:26]} 16. Bd2 {[%clk 0:02:23]}  Qd7 {[%clk 0:02:14]} 17. f3 {[%clk 0:02:18]}  Nf6 {[%clk 0:02:12]} 18. Nd1 {[%clk 0:02:11]}  Ra6 {[%clk 0:02:08]} 19. Ne3 {[%clk 0:02:10]}  Rb6 {[%clk 0:02:06]} 20. Bc3 {[%clk 0:02:03]}  Nh8 {[%clk 0:01:55]} 21. Nf5 {[%clk 0:01:59]}  g6 {[%clk 0:01:55]} 22. Nxe7+ {[%clk 0:01:52]}  Qxe7 {[%clk 0:01:55]} 23. Bxa5 {[%clk 0:01:52]}  Ra6 {[%clk 0:01:55]} 24. Bc3 {[%clk 0:01:53]}  Nd7 {[%clk 0:01:53]} 25. O-O {[%clk 0:01:50]}  Rfa8 {[%clk 0:01:47]} 26. b3 {[%clk 0:01:49]}  f6 {[%clk 0:01:47]} 27. Ne6 {[%clk 0:01:46]}  Nf8 {[%clk 0:01:48]} 28. Nxf8 {[%clk 0:01:45]}  Kxf8 {[%clk 0:01:48]} 29. f4 {[%clk 0:01:45]}  Kg7 {[%clk 0:01:48]} 30. f5 {[%clk 0:01:41]}  Rb6 {[%clk 0:01:43]} 31. Rab1 {[%clk 0:01:36]}  Qf7 {[%clk 0:01:43]} 32. a5 {[%clk 0:01:33]}  Rba6 {[%clk 0:01:42]} 33. Rf3 {[%clk 0:01:32]}  b6 {[%clk 0:01:42]} 34. Rbf1 {[%clk 0:00:59]}  bxa5 {[%clk 0:01:42]} 35. Kh2 {[%clk 0:00:49]}  a4 {[%clk 0:01:42]} 36. fxg6 {[%clk 0:00:48]}  Qxg6 {[%clk 0:01:41]} 37. Rxf6 {[%clk 0:00:31]}  Qxf6 {[%clk 0:01:42]} 38. Rxf6 {[%clk 0:00:32]}  Kxf6 {[%clk 0:01:42]} 39. bxa4 {[%clk 0:00:30]}  Rxa4 {[%clk 0:01:42]} 40. Qxh5 {[%clk 0:00:31]}  Rxc4 {[%clk 0:01:38]} 41. Bd2 {[%clk 0:00:29]}  Rc2 {[%clk 0:01:36]} 42. Kh3 {[%clk 0:00:28]}  Ng6 {[%clk 0:01:27]} 43. Bg5+ {[%clk 0:00:26]}  Kg7 {[%clk 0:01:26]} 44. Qh6+ {[%clk 0:00:27]}  Kf7 {[%clk 0:01:26]} 45. Qh7+ {[%clk 0:00:27]}  Kf8 {[%clk 0:01:26]} 46. Qxg6 {[%clk 0:00:28]}  Ra7 {[%clk 0:01:26]} 47. Qxd6+ {[%clk 0:00:28]} 1-0


[Site "https://www.chess.com"]

[Event "Titled Tuesday Blitz March 14 Early 2023"]
[White "Bortnyk, Olexandr"]
[Black "Taboas Rodriguez, Daniel"]
[WhiteFideId "14120828"]
[BlackFideId "2208466"]
[WhiteElo "2734"]
[BlackElo "2365"]
[Result "1-0"]
[Round "01"]
[TimeControl "180+2"]
[Date "2023.03.14"]
[WhiteClock "0:01:31"]
[BlackClock "0:00:10"]

1. d4 {[%clk 0:03:00]}  Nf6 {[%clk 0:02:59]} 2. Nc3 {[%clk 0:03:01]}  d5 {[%clk 0:02:59]} 3. Bf4 {[%clk 0:03:01]}  Bf5 {[%clk 0:02:59]} 4. e3 {[%clk 0:03:01]}  e6 {[%clk 0:03:00]} 5. Nf3 {[%clk 0:03:01]}  Bd6 {[%clk 0:03:00]} 6. Ne5 {[%clk 0:03:02]}  Nbd7 {[%clk 0:02:57]} 7. Bd3 {[%clk 0:03:02]}  Bxd3 {[%clk 0:02:56]} 8. cxd3 {[%clk 0:03:03]}  O-O {[%clk 0:02:55]} 9. O-O {[%clk 0:03:02]}  Bxe5 {[%clk 0:02:40]} 10. dxe5 {[%clk 0:03:03]}  Ne8 {[%clk 0:02:40]} 11. Rc1 {[%clk 0:03:02]}  c5 {[%clk 0:02:39]} 12. Bg3 {[%clk 0:03:00]}  Nc7 {[%clk 0:02:37]} 13. f4 {[%clk 0:02:53]}  Nb6 {[%clk 0:02:30]} 14. f5 {[%clk 0:02:50]}  exf5 {[%clk 0:02:31]} 15. Rxf5 {[%clk 0:02:50]}  Ne6 {[%clk 0:02:31]} 16. Qg4 {[%clk 0:02:47]}  Qd7 {[%clk 0:02:27]} 17. Rcf1 {[%clk 0:02:44]}  Rae8 {[%clk 0:02:26]} 18. Rh5 {[%clk 0:02:33]}  Nc7 {[%clk 0:02:10]} 19. Qh4 {[%clk 0:02:23]}  h6 {[%clk 0:02:09]} 20. Rf6 {[%clk 0:01:53]}  Re6 {[%clk 0:02:01]} 21. Bf4 {[%clk 0:01:53]}  Ne8 {[%clk 0:01:41]} 22. Bxh6 {[%clk 0:01:37]}  Nxf6 {[%clk 0:00:13]} 23. exf6 {[%clk 0:01:32]}  Rxf6 {[%clk 0:00:14]} 24. Bxg7 {[%clk 0:01:31]}  Kxg7 {[%clk 0:00:11]} 25. Rh7+ {[%clk 0:01:30]}  Kg8 {[%clk 0:00:10]} 26. Rh8+ {[%clk 0:01:30]}  Kg7 {[%clk 0:00:10]} 27. Qh7# {[%clk 0:01:31]} 1-0


[Site "https://www.chess.com"]